bitfinex-derivatives/quotes_ETHF0:USTF0_20250803
["timestamp","ask_amount","ask_price","bid_price","bid_amount"]
[1754229076329,3.6198,3486.9,3486.8,2.0652]
[1754229076528,3.2078,3486.9,3486.8,2.0652]
[1754229076732,3.2078,3486.9,3486.8,1.6784]
[1754229076936,5.1951,3486.9,3486.8,20.661]
[1754229077138,5.1951,3486.9,3486.8,0.949]
[1754229077332,5.1951,3486.9,3486.8,0.3167]
[1754229077932,5.1951,3486.9,3486.8,0.949]
[1754229079134,1.9873,3486.9,3486.8,0.949]
[1754229079541,1.9873,3486.9,3486.8,1.6784]
[1754229079742,1.6994,3486.9,3486.8,2.0652]
[1754229080445,1.4416,3486.9,3486.8,2.0652]
[1754229080834,1.6994,3486.9,3486.8,2.0652]
[1754229081143,1.9873,3486.9,3486.8,1.6784]
[1754229081645,4.1956,3487.3,3487.2,1.6784]
[1754229081843,1.4416,3487.3,3487.2,2.0652]
[1754229082539,3.8002517,3487.5,3487.4,1.6784]
[1754229082742,3.8002517,3487.5,3487.4,21.7752]
[1754229083236,0.9878,3487.5,3487.4,21.7752]
[1754229084343,5.2117517,3487.5,3487.4,21.3884]
[1754229085345,1.6994,3487.5,3487.4,21.7752]
[1754229085540,1.4416,3487.5,3487.4,21.7752]
[1754229086041,1.9873,3487.5,3487.4,21.3884]
[1754229087143,1.9873,3487.5,3487.4,20.656]
[1754229087944,1.9873,3487.5,3487.4,21.3854]
[1754229088444,1.9873,3487.5,3487.4,20.9118]
[1754229088642,1.9873,3487.5,3486.8,0.57359]
[1754229088950,1.4416,3487.0,3486.9,21.7712]
[1754229089450,0.6824,3487.0,3486.9,21.7712]
[1754229089644,1.6994,3487.0,3486.9,1.6784]
[1754229089845,1.6994,3487.0,3486.9,21.3834]
[1754229090042,1.6994,3487.0,3486.9,21.7702]
[1754229090250,1.4416,3487.0,3486.9,21.7702]
[1754229090543,1.9873,3487.0,3486.9,1.6784]
[1754229090745,1.9873,3486.8,3486.7,1.4226]
[1754229090947,5.2117517,3486.8,3486.7,21.1276]
[1754229091245,5.2117517,3486.8,3486.7,0.949]
[1754229091543,5.2117517,3486.8,3486.7,20.654]
[1754229092141,5.2117517,3486.8,3486.7,19.9624]
[1754229092547,1.6819,3486.5,3486.4,0.6323]
[1754229092743,5.2117517,3486.5,3486.4,20.654]
[1754229092945,5.7854017,3486.5,3486.4,21.1276]
[1754229093347,5.7854017,3486.5,3486.4,21.3834]
[1754229096050,4.2122517,3486.5,3486.4,21.7702]
[1754229096249,3.9068517,3486.5,3486.4,21.7702]
[1754229096449,0.412,3486.7,3486.6,0.2574]
[1754229096649,0.6824,3486.7,3486.6,21.7702]
[1754229096849,0.9878,3486.7,3486.6,21.7702]
[1754229097148,2.10708,3486.9,3486.8,1.2048]
[1754229097349,5.7853317,3486.9,3486.8,19.705]
[1754229097545,5.7853317,3486.9,3486.8,20.654]
[1754229097748,4.0684317,3486.9,3486.8,21.3834]
[1754229097950,4.4804317,3486.9,3486.8,21.7702]
[1754229098351,5.2396317,3486.9,3486.8,21.7702]
[1754229098546,0.84396,3487.1,3487.0,0.5132]
[1754229098750,2.01516,3487.1,3487.0,2.0652]
[1754229099253,2.56086,3487.1,3487.0,1.6784]
[1754229099546,2.56086,3487.1,3487.0,0.2574]
[1754229099853,1.81916,3487.0,3486.9,0.6323]
[1754229100150,5.4974117,3487.0,3486.9,20.3373]
[1754229100352,5.7853117,3487.0,3486.9,21.1276]
[1754229100646,5.7853117,3487.0,3486.9,21.7702]
[1754229100647,4.9238517,3487.0,3486.9,21.7702]
[1754229101449,5.2117517,3487.0,3486.9,21.3834]
[1754229101750,5.2117517,3487.0,3486.9,0.949]
[1754229101946,1.40725,3486.5,3486.4,1.3617]
[1754229102252,1.40725,3486.5,3486.4,21.3824]
[1754229102452,2.56095,3486.5,3486.4,21.3824]
[1754229103554,1.9873,3486.5,3486.4,21.3824]
[1754229105543,1.6991,3486.5,3486.4,21.3824]
[1754229105747,1.9737,3486.5,3486.4,21.3824]
[1754229106648,1.4316,3486.5,3486.4,21.7683]
[1754229106850,0.9878,3486.5,3486.4,21.7683]
[1754229107050,0.412,3486.5,3486.4,21.7683]
[1754229107254,0.3972,3487.2,3486.8,0.8253]
[1754229107454,1.96893,3487.2,3487.1,0.8253]
[1754229107655,1.96893,3487.2,3487.1,1.6442]
[1754229107954,2.51103,3487.2,3487.1,1.6442]
[1754229108350,2.51103,3487.2,3486.9,19.704]
[1754229108655,1.9375,3487.1,3487.0,0.3743]
[1754229108959,1.9375,3486.6,3486.5,0.3743]
[1754229109150,1.9375,3486.6,3486.5,20.0783]
[1754229109458,1.9375,3486.6,3486.5,20.6577]
[1754229109655,1.9375,3486.6,3486.5,21.1023]
[1754229109849,5.1619517,3486.6,3486.5,21.3482]
[1754229110050,5.7355817,3486.6,3486.5,21.3482]
[1754229110459,5.1619517,3486.6,3486.5,21.3482]
[1754229113461,5.1619517,3486.6,3486.5,21.7341]
[1754229113462,0.3972,3486.6,3486.5,21.7341]
[1754229114061,1.6629,3486.6,3486.5,21.3482]
[1754229114363,1.9375,3486.6,3486.5,21.3482]
[1754229114665,1.9375,3486.6,3486.5,21.3472]
[1754229116860,0.97081,3486.8,3486.7,0.8253]
[1754229117061,0.97081,3486.8,3486.7,21.7331]
[1754229118263,0.57359,3486.9,3486.7,21.7331]
[1754229118455,1.22319,3486.9,3486.8,2.0301]
[1754229118856,0.6496,3486.9,3486.8,2.0301]
[1754229119056,0.3972,3486.9,3486.8,2.0301]
[1754229119662,0.4438,3487.1,3486.7,19.703]
[1754229119663,0.3972,3487.1,3487.0,0.8253]
[1754229119858,1.02693002,3488.2,3487.8,0.4596]
[1754229120063,3.0741,3488.4,3488.3,1.7392]
[1754229120366,3.25717172,3488.4,3488.3,21.4412]
[1754229120554,3.25717172,3488.4,3487.9,1.3919]
[1754229120555,0.8219,3488.0,3487.9,1.3919]
[1754229120757,0.8219,3488.0,3487.6,3.2078]
[1754229120959,0.8219,3487.7,3487.6,3.2078]
[1754229121266,2.0493,3487.7,3487.6,22.9098]
[1754229122170,2.0493,3487.7,3487.6,23.9158]
[1754229123163,2.0493,3487.7,3487.6,23.2253]
[1754229123960,2.0493,3487.7,3487.6,23.2233]
[1754229126572,2.0493,3487.7,3487.6,3.2078]
[1754229126765,2.0493,3487.7,3487.6,22.9068]
[1754229127367,2.62289,3486.9,3486.8,4.2138]
[1754229127567,2.62289,3486.9,3486.8,23.4682]
[1754229127873,2.62289,3486.9,3486.8,23.9128]
[1754229128370,2.0493,3486.9,3486.8,23.9128]
[1754229128567,1.43368,3487.6,3487.5,0.3155]
[1754229128568,1.35707,3487.6,3487.5,0.3155]
[1754229128770,1.87697,3487.6,3487.5,21.0899]
[1754229129073,2.17897,3487.6,3487.5,21.0899]
[1754229129274,2.62277,3487.6,3487.5,21.0899]
[1754229129572,2.62277,3487.6,3487.5,20.704]
[1754229130373,2.62277,3487.6,3487.5,1.006]
[1754229130672,2.62277,3487.6,3487.5,20.704]
[1754229132073,2.62277,3487.6,3487.5,19.698]
[1754229132569,2.0493,3487.6,3487.2,0.4446]
[1754229132768,2.0493,3487.0,3486.9,4.2138]
[1754229132971,2.0493,3487.0,3486.9,23.9108]
[1754229133467,2.0493,3487.0,3486.9,24.2967]
[1754229133673,2.0493,3487.0,3486.9,24.3086]
[1754229134573,1.6055,3487.0,3486.9,24.3086]
[1754229134773,1.34139,3487.5,3487.3,0.4008]
[1754229135077,1.34139,3487.5,3487.4,1.4513]
[1754229136080,0.57349,3487.5,3487.4,1.4513]
[1754229136277,0.57346,3487.7,3487.4,0.5765]
[1754229136580,0.96556,3487.7,3487.6,1.4513]
[1754229136770,0.57344,3487.8,3487.7,0.8821]
[1754229136967,0.57342,3487.9,3487.8,0.8702]
[1754229137172,0.96552,3487.9,3487.8,1.4513]
[1754229137372,1.34132,3487.9,3487.8,1.4513]
[1754229137575,0.57342,3487.9,3487.8,1.4513]
[1754229138377,0.96552,3487.9,3487.8,1.4513]
[1754229138575,2.60202,3487.9,3487.8,0.7962]
[1754229138879,2.60202,3487.9,3487.7,19.697]
[1754229139079,1.4808,3487.8,3487.7,19.697]
[1754229139279,2.0286,3487.8,3487.7,20.0192]
[1754229139577,2.0286,3487.8,3487.7,20.7402]
[1754229139778,2.0286,3487.8,3487.7,1.0432]
[1754229139978,2.0286,3487.8,3487.7,20.7402]
[1754229141876,1.2789,3487.8,3487.7,21.1473]
[1754229142179,1.2789,3487.8,3487.7,24.3551]
[1754229142571,0.57342,3487.9,3487.7,24.3551]
[1754229142877,0.57342,3487.9,3487.8,1.4513]
[1754229143079,0.57335,3488.3,3488.2,1.4513]
[1754229143279,2.72390159,3488.3,3488.2,21.1463]
[1754229143480,1.85225,3488.3,3488.2,21.1463]
[1754229144984,2.14995,3488.3,3488.2,21.1463]
[1754229145182,0.57335,3488.3,3488.2,21.1463]
[1754229145381,3.2078,3488.4,3488.3,1.4513]
[1754229145686,1.43312,3489.0,3488.7,0.5765]
[1754229145687,1.2789,3488.8,3488.7,0.5765]
[1754229145985,0.7679,3489.0,3488.8,0.8702]
[1754229146182,0.7679,3489.0,3488.9,21.1334]
[1754229146379,1.2789,3489.0,3488.9,21.1334]
[1754229147588,0.57321,3489.2,3488.9,21.1334]
[1754229147778,1.2789,3489.1,3489.0,1.4394]
[1754229148585,1.04738,3489.3,3489.2,1.4394]
[1754229148787,1.04738,3489.3,3489.2,24.3412]
[1754229148976,2.5766,3490.0,3489.9,0.4488]
[1754229149178,2.5766,3490.0,3489.9,20.6631]
[1754229149379,1.9236,3490.0,3489.9,20.6631]
[1754229149690,3.0286,3490.0,3489.9,20.6631]
[1754229150692,1.0,3490.0,3489.9,20.6631]
[1754229151780,3.2078,3490.6,3489.9,20.6631]
[1754229151781,3.2078,3490.6,3489.9,19.692]
[1754229151988,1.0656,3490.8,3490.6,0.3962]
[1754229152282,1.0656,3490.8,3490.4,0.57299]
[1754229152283,0.6735,3490.8,3490.7,20.3322]
[1754229152478,0.452,3490.9,3490.7,19.936]
[1754229152680,0.452,3491.2,3490.8,0.247]
[1754229152881,2.0286,3491.2,3491.1,0.247]
[1754229153287,2.0286,3491.2,3491.1,19.936]
[1754229153984,2.0286,3491.2,3491.1,20.3322]
[1754229154185,2.0286,3491.2,3491.1,0.247]
[1754229154386,2.0286,3491.2,3491.1,19.936]
[1754229154581,2.0286,3490.4,3490.3,3.4548]
[1754229154785,2.0286,3490.4,3490.3,23.1438]
[1754229155692,0.57302,3490.3,3490.1,41.276]
[1754229155888,2.0286,3490.2,3490.1,41.276]
[1754229156084,2.0286,3490.2,3490.1,60.961]
[1754229158391,2.0286,3490.2,3490.1,41.276]
[1754229158694,2.0286,3490.2,3490.1,60.959]
[1754229159792,0.8087,3490.3,3490.2,0.247]
[1754229159994,3.2078,3490.8,3490.1,41.276]
[1754229159995,1.38174,3490.2,3490.1,41.276]
[1754229160196,1.38174,3490.2,3490.1,60.959]
[1754229160390,1.75754,3490.2,3490.1,60.959]
[1754229160593,2.60164,3490.2,3490.1,41.276]
[1754229160897,2.60164,3490.2,3490.1,60.959]
[1754229162588,1.38174,3490.2,3490.1,19.929]
[1754229163203,2.60164,3490.2,3490.1,19.929]
[1754229164189,2.0286,3490.2,3490.1,19.9588]
[1754229164894,2.0286,3490.2,3490.1,19.928]
[1754229166191,0.8555,3489.9,3489.8,0.2554]
[1754229166497,2.1242,3489.9,3489.8,19.9364]
[1754229166698,2.1242,3489.9,3489.8,19.9848]
[1754229167096,2.1242,3489.9,3489.8,0.3038]
[1754229167496,2.1242,3489.9,3489.8,19.681]
[1754229167996,2.6973,3489.8,3489.7,0.2554]
[1754229168197,2.6973,3489.8,3489.7,19.9364]
[1754229169302,2.6973,3489.8,3489.4,3.2264]
[1754229169303,0.57314,3489.6,3489.4,2.5891]
[1754229169510,0.57314,3489.6,3488.3,0.22777527]
[1754229169511,0.8555,3488.9,3488.8,0.2554]
[1754229169709,2.1242,3488.9,3488.8,0.2852]
[1754229169904,2.69736,3489.5,3489.4,0.2554]
[1754229170207,2.69736,3489.5,3489.4,0.2852]
[1754229170506,2.1242,3488.9,3488.8,3.5116]
[1754229170798,2.1242,3488.9,3488.8,0.3038]
[1754229170993,2.1242,3488.9,3488.8,0.7198]
[1754229171396,2.1242,3488.8,3488.7,0.7198]
[1754229171598,0.4148,3488.8,3488.7,0.7198]
[1754229172294,0.7931,3488.8,3488.7,0.7198]
[1754229172891,0.3161,3489.1,3488.7,0.2852]
[1754229173096,2.1242,3489.3,3489.2,0.7198]
[1754229173898,1.6486,3489.4,3489.3,0.7198]
[1754229174592,2.1242,3489.4,3489.3,0.7198]
[1754229174998,4.0009,3489.6,3489.4,0.416]
[1754229175198,4.0009,3489.6,3489.5,0.7198]
[1754229175199,0.7931,3489.6,3489.5,0.7198]
[1754229175399,1.6486,3489.6,3489.5,0.7198]
[1754229175805,2.1242,3489.6,3489.5,0.7198]
[1754229176307,2.1242,3489.6,3489.5,0.2852]
[1754229176497,0.5394,3489.2,3489.1,0.274]
[1754229176699,0.8555,3489.2,3489.1,0.7198]
[1754229177302,1.6486,3489.2,3489.1,0.7198]
[1754229178501,0.4756,3489.5,3489.1,0.7198]
[1754229178809,1.3311,3489.4,3489.3,0.7198]
[1754229179409,2.1242,3489.4,3489.3,0.7198]
[1754229180206,2.1242,3489.4,3489.3,0.2852]
[1754229180601,2.1242,3489.4,3489.3,0.2554]
[1754229181308,2.69742,3489.1,3488.9,3.2078]
[1754229181604,2.1242,3488.5,3488.4,23.632]
[1754229182002,2.1242,3488.5,3488.4,23.6506]
[1754229182302,1.6486,3488.5,3488.4,23.6506]
[1754229182503,1.6486,3488.5,3488.4,23.1862]
[1754229182810,2.1242,3488.5,3488.4,23.1862]
[1754229183008,2.1242,3488.5,3488.4,3.4632]
[1754229183701,0.57333,3488.4,3488.1,20.1566]
[1754229184006,2.1242,3488.2,3488.1,20.4418]
[1754229186611,1.6486,3488.2,3488.1,20.4418]
[1754229186802,1.5306,3488.4,3488.3,0.2554]
[1754229186999,0.4756,3489.1,3489.0,0.2554]
[1754229187309,0.2619,3488.8,3488.7,23.5912]
[1754229187509,2.1242,3488.4,3488.3,3.4632]
[1754229188007,2.1242,3488.4,3488.3,3.493]
[1754229188306,2.1242,3488.4,3488.3,3.9276]
[1754229190110,1.3311,3488.8,3488.7,0.2852]
[1754229190310,1.7459,3488.8,3488.7,0.7198]
[1754229190809,2.1242,3488.8,3488.7,0.7198]
[1754229191509,2.1242,3488.8,3488.7,0.2852]
[1754229191704,2.1242,3488.8,3488.7,0.2554]
[1754229194711,2.1242,3488.8,3488.7,0.2852]
[1754229195717,2.1242,3488.8,3488.7,0.2554]
[1754229196115,2.1242,3488.8,3488.7,0.2758]
[1754229196319,2.1242,3488.8,3488.7,0.2885]
[1754229196912,2.1242,3488.8,3488.7,0.6992]
[1754229198114,2.1242,3488.8,3488.7,0.2885]
[1754229198321,2.1242,3488.8,3488.7,0.2758]
[1754229199125,2.1242,3488.8,3488.7,0.2554]
[1754229200018,2.1242,3488.8,3488.7,0.2758]
[1754229200416,2.1242,3488.8,3488.7,0.2554]
[1754229202730,2.1242,3488.8,3488.7,0.2885]
[1754229202932,2.1242,3488.8,3488.7,0.6992]
[1754229203233,2.1242,3488.8,3488.7,0.2758]
[1754229203433,2.1242,3488.8,3488.7,0.2554]
[1754229204434,2.0426,3488.4,3488.3,3.2078]
[1754229204634,5.26344586,3488.4,3488.3,3.2078]
[1754229205031,2.0426,3488.1,3488.0,19.695]
[1754229205235,2.0426,3488.1,3488.0,19.9609]
[1754229208338,2.0426,3488.1,3488.0,19.695]
[1754229208539,2.0426,3488.1,3488.0,19.9813]
[1754229208741,2.0426,3488.1,3488.0,19.994]
[1754229209037,0.57331,3488.6,3488.1,0.57338]
[1754229209241,2.0426,3488.5,3488.4,0.299]
[1754229209438,1.6603,3488.5,3488.4,0.299]
[1754229209742,1.591,3488.5,3488.4,0.2863]
[1754229209943,2.0426,3488.5,3488.4,0.2863]
[1754229210243,2.0426,3488.5,3488.4,0.2659]
[1754229210441,2.0426,3488.1,3488.0,19.695]
[1754229211743,2.0426,3488.0,3487.9,3.2078]
[1754229211935,5.26344586,3488.0,3487.9,3.2078]
[1754229217146,5.26344586,3488.0,3487.1,0.5271]
[1754229217147,2.0426,3487.2,3487.1,0.5271]
[1754229217342,5.26344586,3487.2,3487.1,0.8345]
[1754229217947,5.26344586,3487.2,3487.1,1.6866]
[1754229218245,2.0426,3487.2,3487.1,1.6866]
[1754229219238,2.0426,3487.0,3486.9,1.03242088]
[1754229219446,5.26344586,3487.0,3486.9,1.03242088]
[1754229219645,4.4165,3487.0,3486.9,2.71902088]
[1754229219946,5.2504,3487.0,3486.9,3.12972088]
[1754229220147,5.2504,3487.0,3486.9,2.71902088]
[1754229220448,8.47124586,3487.0,3486.9,2.71902088]
[1754229220745,8.47124586,3487.0,3486.9,3.12972088]
[1754229221044,8.47124586,3487.0,3486.9,1.03242088]
[1754229222743,3.5832,3487.0,3486.9,3.12972088]
[1754229223043,3.79438586,3487.2,3487.1,0.2612]
[1754229223247,5.83698586,3487.2,3487.1,1.6866]
[1754229224552,5.26344586,3487.2,3487.1,2.0889]
[1754229224747,5.26344586,3487.2,3487.1,1.6866]
[1754229226845,4.71439,3487.5,3487.4,2.1163]
[1754229227046,5.90589,3487.5,3487.4,2.1163]
[1754229227248,9.12673586,3487.5,3487.4,2.1163]
[1754229228148,9.12673586,3487.5,3487.4,1.714]
[1754229230750,9.12673586,3487.5,3487.4,2.1163]
[1754229232051,0.3845,3487.7,3487.4,2.1163]
[1754229232353,2.3608,3487.9,3487.8,2.1163]
[1754229232948,2.7533,3487.9,3487.8,2.1163]
[1754229233153,0.3925,3487.9,3487.8,2.1163]
[1754229233555,1.3256,3487.9,3487.8,2.1163]
[1754229236256,0.3925,3487.9,3487.8,2.1163]
[1754229236655,0.777,3487.9,3487.8,2.1163]
[1754229236957,1.3256,3487.9,3487.8,2.1163]
[1754229237158,5.34544586,3487.9,3487.8,2.1163]
[1754229237457,5.34544586,3487.9,3487.8,1.714]
[1754229237653,5.34544586,3487.9,3487.8,2.1163]
[1754229239352,5.34544586,3487.9,3487.8,1.3205]
[1754229240060,5.34544586,3487.9,3487.8,1.3332]
[1754229240758,5.34544586,3487.9,3487.8,1.7355]
[1754229241353,1.6418,3487.9,3487.8,1.7355]
[1754229241659,1.3256,3487.9,3487.8,1.7355]
[1754229242358,0.3925,3488.8,3488.1,0.4443]
[1754229242555,2.31341,3488.6,3488.5,0.7691]
[1754229242748,5.53425586,3488.6,3488.5,0.3248]
[1754229242951,4.08564586,3488.6,3488.5,0.6033]
[1754229243152,4.47014586,3488.6,3488.5,1.0476]
[1754229243352,0.8648,3488.1,3488.0,20.7956]
[1754229243656,2.1246,3488.1,3488.0,21.1979]
[1754229243864,1.3256,3488.1,3488.0,21.1979]
[1754229244460,2.1246,3488.1,3488.0,21.1979]
[1754229244761,2.1246,3488.1,3488.0,0.3248]
[1754229245355,2.1246,3488.1,3488.0,0.7691]
[1754229248563,2.1246,3488.1,3488.0,1.0476]
[1754229249562,2.1246,3488.1,3487.9,19.719]
[1754229249761,3.2078,3488.5,3487.9,20.4881]
[1754229249762,5.34544586,3488.0,3487.9,20.4881]
[1754229250156,5.34544586,3488.0,3487.9,20.7666]
[1754229250560,2.1246,3488.0,3487.9,21.2019]
[1754229250756,0.3925,3488.2,3488.0,0.5734]
[1754229250962,1.0587,3488.5,3488.4,1.0386]
[1754229251158,0.777,3488.7,3488.4,2.05622]
[1754229251360,0.3845,3488.7,3488.6,0.6236]
[1754229251553,3.2078,3488.9,3488.6,0.6236]
[1754229251858,3.2078,3488.9,3488.3,19.706]
[1754229251859,1.3256,3488.8,3488.7,1.4829]
[1754229252058,0.6514,3488.8,3488.7,1.4829]
[1754229252257,1.3256,3488.8,3488.7,1.4829]
[1754229253260,1.8084,3488.8,3488.7,1.4829]
[1754229256070,1.3256,3488.8,3488.7,1.4829]
[1754229257171,3.4643,3489.3,3489.2,1.453]
[1754229257372,3.2078,3489.3,3489.2,1.4433]
[1754229257573,3.2078,3489.3,3489.2,1.453]
[1754229257870,4.0309,3489.3,3489.2,1.453]
[1754229258665,4.2946,3489.3,3489.2,1.453]
[1754229259858,5.3357,3489.3,3489.2,1.0242]
[1754229260471,5.3357,3489.3,3489.2,1.453]
[1754229260771,2.1279,3489.3,3489.2,1.453]
[1754229261572,3.22084586,3489.4,3489.3,0.57319]
[1754229261768,0.2565,3489.7,3489.6,0.5899]
[1754229261972,1.3433,3489.7,3489.6,1.453]
[1754229262172,5.34874586,3489.7,3489.6,1.453]
[1754229262467,5.34874586,3489.7,3489.6,1.0494]
[1754229263272,5.34874586,3489.7,3489.6,1.0397]
[1754229264561,0.5202,3489.1,3489.0,20.55063]
[1754229264761,1.3433,3489.1,3489.0,1.453]
[1754229264967,5.34874586,3489.1,3489.0,20.7434]
[1754229265666,1.43264,3490.2,3489.2,0.4133]
[1754229265667,0.57307,3490.0,3489.2,0.4133]
[1754229265874,1.7094,3490.0,3489.9,1.453]
[1754229266074,2.1279,3490.0,3489.9,1.453]
[1754229266968,1.3433,3490.0,3489.9,1.453]
[1754229267168,1.3433,3490.3,3490.2,1.1435]
[1754229267372,1.3433,3490.3,3490.2,1.453]
[1754229267576,1.3433,3490.3,3490.2,21.146]
[1754229267965,2.1279,3490.3,3490.2,20.7327]
[1754229268774,2.1279,3490.3,3490.2,20.7424]
[1754229268968,3.2078,3490.7,3490.2,21.71903]
[1754229269170,0.9766,3490.6,3490.5,0.5899]
[1754229269378,2.1279,3490.6,3490.5,1.0397]
[1754229270577,2.1279,3490.3,3490.0,0.4498]
[1754229270770,2.1279,3490.2,3490.1,20.7142]
[1754229271573,0.57298,3490.6,3490.1,20.2799]
[1754229271874,3.2078,3490.9,3490.1,20.2799]
[1754229271875,1.3433,3490.5,3490.4,1.453]
[1754229272465,2.1279,3490.5,3490.4,1.453]
[1754229273174,2.1279,3490.5,3490.4,1.0242]
[1754229274678,2.1279,3490.5,3490.4,0.7593]
[1754229274875,2.1279,3490.5,3490.4,0.3095]
[1754229275075,0.8231,3490.0,3489.8,3.78089]
[1754229275282,1.6516,3489.9,3489.8,3.5173]
[1754229275580,1.6516,3489.9,3489.8,3.2078]
[1754229275780,2.1279,3489.9,3489.8,3.2078]
[1754229276176,2.1279,3489.5,3489.4,23.2133]
[1754229276378,2.1279,3489.5,3489.4,23.6631]
[1754229276578,2.1279,3489.5,3489.4,23.928]
[1754229276783,0.8231,3489.8,3489.7,0.5744]
[1754229277081,1.3433,3489.8,3489.7,1.453]
[1754229277488,1.8196,3489.8,3489.7,1.453]
[1754229277675,1.3433,3489.8,3489.7,1.453]
[1754229277877,1.3048,3490.2,3490.1,0.5744]
[1754229278077,1.3048,3490.2,3490.1,1.0397]
[1754229278298,1.3048,3490.2,3490.1,1.453]
[1754229278582,2.1279,3490.2,3490.1,1.453]
[1754229279295,2.1279,3490.2,3490.1,1.0397]
[1754229279595,0.8231,3490.4,3490.1,0.5899]
[1754229279796,1.3433,3490.3,3490.2,1.0397]
[1754229280494,1.3433,3490.3,3490.2,1.453]
[1754229281094,2.1279,3490.3,3490.2,1.453]
[1754229284193,1.3433,3490.3,3490.2,1.453]
[1754229286094,1.8169,3490.3,3490.2,1.453]
[1754229286596,2.1413,3490.3,3490.2,1.0397]
[1754229286895,2.1413,3490.3,3490.2,0.3095]
[1754229287194,0.57304,3490.2,3489.9,0.4573]
[1754229287498,2.101,3490.0,3489.9,1.0362]
[1754229287996,2.101,3490.0,3489.9,1.4267]
[1754229291802,1.303,3490.0,3489.9,1.4267]
[1754229291997,1.4011,3490.5,3490.4,0.7305]
[1754229292197,1.7766,3490.5,3490.4,1.4267]
[1754229292401,0.5343,3490.5,3490.4,0.5789]
[1754229292603,1.303,3490.5,3490.4,0.5789]
[1754229292795,3.2078,3491.0,3490.5,0.57299]
[1754229293003,2.97211845,3490.9,3490.8,1.0362]
[1754229293506,2.101,3490.9,3490.8,1.0362]
[1754229293699,2.101,3490.9,3490.8,1.4267]
[1754229294095,1.303,3490.9,3490.8,1.4267]
[1754229294293,1.6274,3490.9,3490.8,1.0362]
[1754229294503,2.101,3490.9,3490.8,1.0362]
[1754229295201,0.8587,3490.7,3490.6,20.1433]
[1754229295402,2.101,3490.7,3490.6,20.449]
[1754229295697,0.6631,3490.7,3490.6,21.1127]
[1754229296100,0.7687,3490.9,3490.8,1.4267]
[1754229296304,1.303,3490.9,3490.8,1.4267]
[1754229296805,2.101,3490.9,3490.8,1.4267]
[1754229297601,1.303,3490.9,3490.8,1.4267]
[1754229298609,1.0331,3490.9,3490.8,1.4267]
[1754229298908,1.303,3490.9,3490.8,1.4267]
[1754229299310,1.6274,3490.9,3490.8,1.4267]
[1754229299609,2.101,3490.9,3490.8,1.0362]
[1754229300207,0.8587,3490.7,3490.6,3.2078]
[1754229300403,2.101,3490.3,3490.2,3.2078]
[1754229300912,2.101,3490.3,3490.2,4.6345]
[1754229301409,2.101,3490.3,3490.2,1.4267]
[1754229301599,0.6631,3490.3,3490.2,1.4267]
[1754229301803,0.5343,3490.3,3490.2,0.5789]
[1754229302098,1.303,3490.3,3490.2,0.5789]
[1754229302498,1.303,3490.3,3490.2,1.4267]
[1754229302699,0.3755,3490.3,3490.2,4.6345]
[1754229302902,1.303,3490.3,3490.2,4.6345]
[1754229303103,1.7766,3490.3,3490.2,4.6345]
[1754229303609,2.101,3490.3,3490.2,4.244]
[1754229303812,2.101,3490.3,3490.2,23.1975]
[1754229304207,2.101,3490.3,3490.2,19.9897]
[1754229304401,2.67403,3490.3,3490.0,0.4573]
[1754229304605,2.101,3490.2,3490.1,19.684]
[1754229305207,0.8587,3489.9,3489.8,44.9201]
[1754229305510,2.101,3489.9,3489.8,64.6051]
[1754229305710,2.101,3489.9,3489.8,60.939]
[1754229306207,2.101,3489.9,3489.8,19.684]
[1754229307607,2.101,3489.9,3489.8,19.9897]
[1754229309015,2.101,3489.9,3489.8,20.7202]
[1754229309408,0.57301,3490.4,3489.9,0.57309]
[1754229309610,1.2519,3490.3,3490.2,1.0362]
[1754229309907,1.7255,3490.3,3490.2,1.0362]
[1754229310112,2.101,3490.3,3490.2,1.0362]
[1754229311802,1.303,3490.3,3490.2,1.4267]
[1754229312107,2.101,3490.3,3490.2,1.4267]
[1754229313305,2.101,3490.3,3490.2,0.3057]
[1754229313501,2.101,3490.3,3490.1,19.685]
[1754229313712,2.0574,3490.2,3490.1,20.4508]
[1754229314108,2.0574,3490.2,3490.1,20.7116]
[1754229315314,2.0574,3490.2,3490.1,20.0049]
[1754229315608,3.2078,3490.6,3490.2,0.57304]
[1754229315813,4.0217,3490.6,3490.5,0.5807]
[1754229316014,4.0217,3490.6,3490.5,1.0266]
[1754229316406,5.2652,3490.6,3490.5,1.0266]
[1754229316711,3.2078,3490.6,3490.5,1.4171]
[1754229316912,3.5937,3490.6,3490.5,1.4171]
[1754229317315,2.0574,3490.6,3490.5,4.2344]
[1754229318310,2.0574,3490.6,3490.5,0.3199]
[1754229318506,2.0574,3490.3,3490.2,1.0266]
[1754229318813,2.0574,3490.3,3490.2,20.7116]
[1754229320420,2.0574,3490.3,3490.2,21.1021]
[1754229321013,0.7621,3490.3,3490.0,3.2078]
[1754229321319,2.0574,3490.0,3489.9,0.7658]
[1754229321521,2.0574,3490.0,3489.9,20.7106]
[1754229322320,0.8139,3489.7,3489.6,4.2344]
[1754229322516,2.0574,3489.7,3489.6,23.9184]
[1754229323214,1.576,3490.2,3490.1,0.5807]
[1754229323415,2.0574,3490.2,3490.1,1.0266]
[1754229324016,2.0574,3490.2,3490.1,0.3199]